bitfinex/quotes_SOLUSD_20220212
["timestamp","ask_amount","ask_price","bid_price","bid_amount"]
[1644692683609,5.086,98.349,98.257,5.11]
[1644692684112,5.086,98.349,98.258,100.3]
[1644692684309,15.266,98.35,98.259,0.024]
[1644692684609,5.086,98.349,98.259,0.024]
[1644692684809,5.086,98.349,98.258,0.024]
[1644692685809,5.086,98.349,98.258,0.274]
[1644692686011,5.086,98.349,98.259,0.024]
[1644692687109,30.3217,98.35,98.26,5.086]
[1644692687309,30.3217,98.35,98.261,0.024]
[1644692687510,5.086,98.349,98.261,0.024]
[1644692687709,30.3217,98.35,98.262,5.11]
[1644692687911,30.3217,98.35,98.262,0.024]
[1644692688110,30.3217,98.35,98.263,5.11]
[1644692688309,30.3217,98.35,98.261,0.024]
[1644692688511,30.3217,98.35,98.262,5.086]
[1644692688712,30.3217,98.35,98.263,0.024]
[1644692689113,5.086,98.349,98.259,0.024]
[1644692689313,5.086,98.349,98.26,0.024]
[1644692689511,5.086,98.349,98.259,0.024]
[1644692690216,15.2678,98.34,98.259,0.024]
[1644692690513,14.63,98.33,98.257,0.024]
[1644692690713,22.02,98.33,98.252,0.024]
[1644692690914,5.086,98.329,98.252,0.024]
[1644692691712,5.086,98.329,98.252,0.274]
[1644692693415,47.9603078,98.338,98.252,100.574]
[1644692693613,47.9603078,98.338,98.253,5.11]
[1644692693823,47.9603078,98.338,98.254,100.324]
[1644692694024,47.9603078,98.338,98.255,5.086]
[1644692694323,47.9603078,98.338,98.257,100.3]
[1644692694528,47.9603078,98.338,98.258,0.024]
[1644692694723,47.9603078,98.338,98.258,2.64790296]
[1644692694923,47.9603078,98.338,98.259,0.024]
[1644692695123,47.9603078,98.338,98.259,2.64790296]
[1644692695328,47.9603078,98.338,98.26,2.62390296]
[1644692695528,47.9603078,98.338,98.27,15.2623]
[1644692695726,47.9603078,98.338,98.271,41.54517804]
[1644692696429,5.086,98.369,98.271,41.54517804]
[1644692696430,5.086,98.369,98.28,15.2612]
[1644692696630,1.41164323,98.386,98.29,14.63]
[1644692696828,1.41164323,98.388,98.291,24.5619]
[1644692697030,1.41164323,98.391,98.291,43.01280296]
[1644692697227,1.41164323,98.391,98.292,0.024]
[1644692697427,24.1122,98.398,98.292,140.2955085]
[1644692697428,39.10477923,98.377,98.292,140.2955085]
[1644692697627,39.10477923,98.377,98.293,7.73090296]
[1644692697828,39.10477923,98.377,98.311,44.09672472]
[1644692698029,39.10477923,98.377,98.312,5.083]
[1644692698330,39.10477923,98.377,98.312,2.62390296]
[1644692698530,39.10477923,98.377,98.313,2.62390296]
[1644692698731,5.083,98.389,98.313,2.62390296]
[1644692698928,5.083,98.386,98.313,2.62390296]
[1644692699130,5.083,98.39,98.313,2.62390296]
[1644692699329,5.083,98.377,98.313,2.62390296]
[1644692699931,41.38625935,98.376,98.313,2.62390296]
[1644692700341,0.03174136,98.392,98.313,2.62390296]
[1644692700541,0.03174136,98.393,98.313,2.62390296]
[1644692700741,0.03174136,98.391,98.313,2.62390296]
[1644692701041,0.03174136,98.393,98.313,2.62390296]
[1644692701245,37.45174508,98.377,98.313,2.62390296]
[1644692701440,37.45174508,98.377,98.311,44.09672472]
[1644692702643,5.083,98.376,98.312,100.3]
[1644692703143,5.083,98.376,98.313,0.25]
[1644692703547,37.45174508,98.377,98.313,0.25]
[1644692704648,5.083,98.376,98.313,0.25]
[1644692705147,5.083,98.376,98.311,44.09672472]
[1644692706244,27.8643,98.376,98.311,44.09672472]
[1644692707644,27.8643,98.376,98.312,0.25]
[1644692707849,27.8643,98.376,98.311,44.09672472]
[1644692708049,1.41164323,98.375,98.301,0.024]
[1644692708249,1.41164323,98.375,98.28,2.62390296]
[1644692708250,1.41164323,98.368,98.296,0.274]
[1644692708449,22.7813,98.376,98.291,23.0967]
[1644692708450,1.41164323,98.365,98.291,23.0967]
[1644692708652,1.41164323,98.358,98.292,0.024]
[1644692708853,5.085,98.357,98.282,0.024]
[1644692709049,34.73981936,98.356,98.282,39.45815812]
[1644692709251,36.15146259,98.356,98.282,39.48215812]
[1644692709451,36.15146259,98.356,98.282,39.45815812]
[1644692709650,1.41164323,98.355,98.282,39.45815812]
[1644692709854,1.41164323,98.354,98.283,0.25]
[1644692710453,1.41164323,98.355,98.283,0.25]
[1644692710651,1.41164323,98.355,98.283,23.7412]
[1644692710851,1.41164323,98.354,98.283,23.7412]
[1644692711253,1.41164323,98.355,98.283,23.7412]
[1644692712259,36.15146259,98.356,98.283,23.7412]
[1644692712457,34.73981936,98.356,98.284,5.085]
[1644692713657,1.41164323,98.353,98.283,23.7412]
[1644692713858,5.085,98.352,98.283,23.7412]
[1644692714355,24.7229,98.351,98.282,39.45815812]
[1644692714557,5.085,98.35,98.282,39.45815812]
[1644692714756,24.7229,98.351,98.282,39.45815812]
[1644692715359,24.7229,98.351,98.282,139.75815812]
[1644692715762,24.7229,98.351,98.283,0.25]
[1644692718266,24.7229,98.351,98.284,5.085]
[1644692719668,24.7229,98.351,98.285,100.3]
[1644692719870,24.7229,98.351,98.287,100.3]
[1644692720271,24.7229,98.351,98.288,5.085]
[1644692721072,24.7229,98.351,98.284,2.62390296]
[1644692721372,24.7229,98.351,98.285,5.085]
[1644692721779,24.7229,98.351,98.273,0.024]
[1644692721780,105.385,98.35,98.273,0.024]
[1644692721979,1.41164323,98.329,98.266,2.62390296]
[1644692722180,1.41164323,98.321,98.267,0.024]
[1644692722379,1.41164323,98.325,98.232,100.3]
[1644692722682,5.087,98.32,98.233,0.024]
[1644692722880,35.59653864,98.319,98.256,65.67266426]
[1644692723080,35.59653864,98.319,98.256,65.92266426]
[1644692723282,5.087,98.318,98.256,65.92266426]
[1644692723483,1.41164323,98.323,98.257,100.3]
[1644692723681,1.41164323,98.323,98.257,105.387]
[1644692723981,1.41164323,98.323,98.261,100.3]
[1644692724180,1.41164323,98.323,98.263,100.3]
[1644692724382,1.41164323,98.345,98.263,100.3]
[1644692724583,39.79361795,98.348,98.264,5.086]
[1644692724785,39.79361795,98.348,98.264,5.11]
[1644692724986,39.79361795,98.348,98.27,15.2618]
[1644692725187,23.9141,98.347,98.271,24.3612]
[1644692725384,23.9141,98.347,98.272,37.78128678]
[1644692725584,23.9141,98.347,98.272,138.05728678]
[1644692725785,23.9141,98.347,98.272,138.08128678]
[1644692727602,23.9141,98.347,98.28,15.2611]
[1644692728005,23.9141,98.347,98.281,5.085]
[1644692728204,23.9141,98.347,98.282,100.3]
[1644692728404,1.41164323,98.35,98.282,100.3]
[1644692728607,0.03174136,98.378,98.29,15.2598]
[1644692728804,0.03174136,98.386,98.3,14.63]
[1644692729004,23.939,98.387,98.301,100.3]
[1644692729005,0.03174136,98.378,98.301,100.3]
[1644692729204,0.03174136,98.385,98.301,105.407]
[1644692729404,0.03174136,98.385,98.302,0.024]
[1644692729705,0.03174136,98.385,98.303,5.083]
[1644692730004,0.03174136,98.385,98.322,35.01131003]
[1644692730204,23.939,98.387,98.322,135.31131003]
[1644692730413,23.939,98.387,98.323,5.083]
[1644692732905,23.439,98.387,98.323,5.083]
[1644692735107,23.439,98.387,98.322,35.01131003]
[1644692735407,7.0,98.36,98.311,0.024]
[1644692735607,7.0,98.36,98.314,0.024]
[1644692735608,5.083,98.359,98.314,0.024]
[1644692735811,5.083,98.359,98.284,0.024]
[1644692736407,48.43224634,98.358,98.292,38.92741571]
[1644692736606,48.43224634,98.358,98.292,39.17741571]
[1644692736808,5.085,98.357,98.292,39.17741571]
[1644692737406,29.8911,98.357,98.292,39.17741571]
[1644692739011,7.0,98.36,98.293,5.085]
[1644692739209,5.085,98.382,98.293,5.085]
[1644692739210,0.03174136,98.379,98.293,15.945]
[1644692739409,0.03174136,98.378,98.294,0.024]
[1644692739609,5.085,98.382,98.294,0.024]
[1644692739610,0.03174136,98.379,98.295,5.083]
[1644692739809,0.03174136,98.378,98.3,14.63]
[1644692740009,36.75045125,98.381,98.301,0.024]
[1644692740211,0.03174136,98.377,98.301,5.107]
[1644692740410,0.03174136,98.38,98.31,15.2555]
[1644692740611,0.03174136,98.381,98.311,5.083]
[1644692740810,5.085,98.382,98.311,5.083]
[1644692741011,5.085,98.382,98.312,100.3]
[1644692741411,5.085,98.382,98.313,37.73507389]
[1644692741412,47.85804018,98.381,98.313,37.73507389]
[1644692742213,47.85804018,98.381,98.314,100.3]
[1644692742414,47.85804018,98.381,98.314,105.383]
[1644692743717,47.85804018,98.381,98.314,5.083]
[1644692744819,20.342,98.38,98.313,37.73507389]
[1644692745018,22.96590296,98.38,98.313,37.73507389]
[1644692745218,2.62390296,98.379,98.314,0.25]
[1644692745418,5.083,98.378,98.314,0.25]
[1644692745820,47.85804018,98.381,98.314,0.25]
[1644692746020,5.083,98.38,98.314,0.25]
[1644692746918,15.2601,98.37,98.314,0.25]
[1644692747118,5.083,98.369,98.314,0.25]
[1644692747619,5.083,98.379,98.314,0.25]
[1644692748018,5.083,98.38,98.314,0.25]
[1644692748218,20.3414,98.38,98.314,0.25]
[1644692749219,15.2584,98.38,98.314,0.25]
[1644692749419,47.85804018,98.381,98.314,0.25]
[1644692751122,5.083,98.385,98.314,0.25]
[1644692751322,0.03174136,98.388,98.315,5.083]
[1644692751523,23.7902,98.389,98.316,100.3]
[1644692751721,23.7902,98.389,98.317,5.083]
[1644692752924,23.7902,98.389,98.318,100.3]
[1644692753125,0.03082653,98.393,98.318,100.3]
[1644692753126,5.083,98.392,98.32,15.2537]
[1644692753324,0.03082653,98.394,98.32,29.8837]
[1644692753524,0.03082653,98.401,98.321,5.083]
[1644692753729,0.03082653,98.4,98.321,5.083]
[1644692753927,0.03082653,98.4,98.321,7.70690296]
[1644692754123,0.03082653,98.412,98.322,25.57680296]
[1644692754327,0.03082653,98.399,98.323,5.083]
[1644692754523,0.03082653,98.411,98.323,7.70690296]
[1644692754722,0.03082653,98.41,98.34,15.2494]
[1644692754924,0.03082653,98.41,98.341,43.32107815]
[1644692755123,5.082,98.416,98.342,100.3]
[1644692755324,5.11282653,98.416,98.342,102.92390296]
[1644692755523,5.11282653,98.417,98.342,102.92390296]
[1644692755726,5.082,98.417,98.342,102.92390296]
[1644692756530,5.082,98.417,98.342,110.84390296]
[1644692756727,5.082,98.417,98.35,15.2497]
[1644692756929,23.46512653,98.418,98.35,15.2497]
[1644692756930,23.4343,98.418,98.35,15.2497]
[1644692757127,23.4343,98.418,98.351,5.082]
[1644692757327,23.4343,98.418,98.352,100.3]
[1644692757926,23.4343,98.418,98.351,5.082]
[1644692758127,5.082,98.417,98.35,15.2497]
[1644692758529,5.082,98.417,98.351,5.082]
[1644692760029,5.082,98.417,98.344,5.082]
[1644692760228,5.082,98.417,98.343,24.8386]
[1644692760629,5.082,98.417,98.344,102.92390296]
[1644692760829,23.4343,98.418,98.345,5.082]
[1644692761031,23.4343,98.418,98.345,7.70590296]
[1644692761234,23.4343,98.418,98.346,2.62390296]
[1644692761636,23.4343,98.418,98.346,102.92390296]
[1644692761830,23.4343,98.418,98.351,100.3]
[1644692762232,23.4343,98.418,98.351,102.92390296]
[1644692763233,23.4343,98.418,98.352,5.082]
[1644692763636,23.4343,98.418,98.353,100.3]
[1644692763835,23.4343,98.418,98.354,5.082]
[1644692764035,23.4343,98.418,98.353,100.3]
[1644692766939,23.4343,98.418,98.355,100.3]
[1644692767140,23.4343,98.418,98.357,100.3]
[1644692767339,23.4343,98.418,98.359,100.3]
[1644692771667,0.03082653,98.43,98.36,15.2483]
[1644692771870,0.03082653,98.438,98.362,100.3]
[1644692772269,0.03082653,98.438,98.363,2.62390296]
[1644692772470,23.70162653,98.439,98.363,2.62390296]
[1644692772670,43.99172339,98.438,98.363,2.62390296]
[1644692772869,43.99172339,98.438,98.37,15.246]
[1644692773068,43.99172339,98.438,98.371,148.33788158]
[1644692773370,43.99172339,98.438,98.373,100.3]
[1644692774969,23.6708,98.439,98.373,100.3]
[1644692775168,23.6708,98.439,98.373,108.06]
[1644692775369,0.03082653,98.45,98.38,15.2451]
[1644692775574,2.80118659,98.454,98.38,15.2451]
[1644692775575,0.03082653,98.444,98.381,5.08]
[1644692775769,0.03082653,98.453,98.381,7.70390296]
[1644692775970,0.03082653,98.468,98.382,2.62390296]
[1644692776169,0.03082653,98.479,98.383,5.08]
[1644692776370,0.03082653,98.467,98.383,21.83521289]
[1644692776569,0.03082653,98.478,98.39,15.2409]
[1644692776769,0.03082653,98.466,98.4,14.63]
[1644692776972,0.03082653,98.477,98.401,100.3]
[1644692777168,4.20177988,98.528,98.401,100.3]
[1644692777169,0.03082653,98.496,98.402,23.1965]
[1644692777369,0.03082653,98.477,98.405,100.3]
[1644692777571,0.03082653,98.495,98.405,100.3]
[1644692777769,2.80118659,98.506,98.406,2.62390296]
[1644692777970,0.03082653,98.494,98.421,44.41724879]
[1644692778171,4.73195208,98.505,98.421,44.41724879]
[1644692778372,2.80118659,98.501,98.422,2.62390296]
[1644692778670,7.50231214,98.502,98.422,102.92390296]
[1644692778874,0.03082653,98.5,98.422,102.92390296]
[1644692779069,4.73195208,98.501,98.423,2.62390296]
[1644692779270,0.03082653,98.499,98.424,100.3]
[1644692779474,0.03082653,98.5,98.424,100.3]
[1644692779771,0.03082653,98.5,98.43,15.237]
[1644692779972,5.10882653,98.507,98.431,5.077]
[1644692780171,4.73195208,98.506,98.432,100.3]
[1644692780371,5.077,98.506,98.432,100.3]
[1644692780571,4.70112555,98.505,98.432,100.3]
[1644692780774,5.077,98.506,98.432,100.3]
[1644692780973,4.70112555,98.505,98.432,100.3]
[1644692781172,2.80118659,98.505,98.432,100.3]
[1644692781372,4.70112555,98.506,98.432,100.3]
[1644692781572,2.80118659,98.51,98.432,100.3]
[1644692781773,0.03082653,98.507,98.441,41.20376696]
[1644692781975,0.03082653,98.509,98.441,41.20376696]
[1644692782173,5.077,98.509,98.441,41.20376696]
[1644692782373,9.77812555,98.509,98.441,41.20376696]
[1644692782573,4.70112555,98.508,98.441,41.20376696]
[1644692782776,5.077,98.507,98.441,41.20376696]
[1644692782976,4.70112555,98.506,98.441,41.20376696]
[1644692783179,4.70112555,98.506,98.425,5.077]
[1644692783180,5.077,98.505,98.426,5.077]
[1644692783377,4.70112555,98.504,98.423,2.62390296]
[1644692783578,2.80118659,98.492,98.39,50.8011]
[1644692783780,7.0,98.5,98.39,50.8011]
[1644692783781,2.80118659,98.483,98.39,50.8011]
[1644692783980,2.80118659,98.478,98.39,50.8011]
[1644692784178,40.84480341,98.476,98.391,48.69544864]
[1644692784383,40.84480341,98.476,98.4,15.2417]
[1644692784579,9.81095208,98.475,98.391,48.69544864]
[1644692784977,4.70112555,98.474,98.391,48.69544864]
[1644692785177,5.10982653,98.473,98.391,48.69544864]
[1644692785379,4.70112555,98.472,98.391,48.69544864]
[1644692785678,0.03082653,98.471,98.391,48.69544864]
[1644692785880,15.2445,98.47,98.391,48.69544864]
[1644692786079,5.10982653,98.469,98.391,48.69544864]
[1644692786279,9.81095208,98.469,98.391,48.69544864]
[1644692786479,4.70112555,98.468,98.391,48.69544864]
[1644692786679,5.079,98.467,98.391,48.69544864]
[1644692786879,5.10982653,98.467,98.391,48.69544864]
[1644692787082,0.03082653,98.467,98.391,48.69544864]
[1644692787280,5.079,98.466,98.391,48.69544864]
[1644692787581,0.03082653,98.467,98.391,48.69544864]
[1644692787781,0.03082653,98.468,98.391,48.69544864]
[1644692787981,5.10982653,98.467,98.391,48.69544864]
[1644692788180,4.68122028,98.466,98.391,48.69544864]
[1644692788381,5.079,98.465,98.391,48.69544864]
[1644692788781,4.68023936,98.464,98.391,48.69544864]
[1644692788979,5.079,98.463,98.391,53.77444864]
[1644692789180,4.68023936,98.462,98.391,53.77444864]
[1644692789382,42.82629156,98.461,98.391,53.77444864]
[1644692790080,4.6847028,98.46,98.391,53.77444864]
[1644692790281,5.079,98.459,98.391,53.77444864]
[1644692790482,5.079,98.46,98.391,53.77444864]
[1644692790683,5.079,98.46,98.391,48.69544864]
[1644692794892,4.68993092,98.459,98.391,48.69544864]
[1644692795090,5.08,98.458,98.391,48.69544864]
[1644692795288,42.82629156,98.461,98.391,48.69544864]
[1644692795489,4.68960059,98.46,98.391,48.69544864]
[1644692796688,5.079,98.459,98.391,48.69544864]
[1644692796887,22.525,98.46,98.391,48.69544864]
[1644692797288,0.03082653,98.469,98.4,15.2423]
[1644692797491,14.63,98.5,98.4,15.2423]
[1644692797492,0.03082653,98.464,98.4,15.2423]
[1644692797688,0.03082653,98.477,98.402,100.3]
[1644692797888,0.03082653,98.477,98.403,5.079]
[1644692798089,0.03082653,98.483,98.404,100.3]
[1644692798489,37.69684136,98.483,98.42,15.2388]
[1644692798690,37.66601483,98.483,98.42,15.2388]
[1644692798888,4.69176393,98.482,98.42,15.2388]
[1644692799093,4.69176393,98.482,98.422,35.55150776]
[1644692800291,4.69176393,98.482,98.423,5.078]
[1644692800892,7.49295052,98.482,98.423,5.078]
[1644692801493,4.69176393,98.482,98.423,5.078]
[1644692802295,4.69176393,98.482,98.43,15.2381]
[1644692802494,4.69176393,98.484,98.43,115.5381]
[1644692802898,24.4598,98.485,98.43,115.5381]
[1644692804302,2.80118659,98.493,98.431,5.078]
[1644692804700,2.80118659,98.492,98.431,5.078]
[1644692804899,2.80118659,98.492,98.432,24.9232]
[1644692805101,35.61098925,98.491,98.433,5.078]
[1644692805302,4.70129158,98.49,98.433,5.078]
[1644692806502,4.70129158,98.49,98.432,24.9232]
[1644692809136,35.61098925,98.491,98.432,24.9232]
[1644692809534,5.078,98.502,98.432,24.9232]
[1644692809733,5.078,98.502,98.44,15.2365]
[1644692809935,4.69845455,98.501,98.44,15.2365]
[1644692810131,5.077,98.5,98.44,15.2365]
[1644692810333,4.69845455,98.499,98.44,15.2365]
[1644692810531,40.27444277,98.499,98.441,38.50098049]
[1644692810732,9.77545455,98.498,98.441,38.50098049]
[1644692810935,4.69845455,98.497,98.441,38.50098049]
[1644692811133,5.077,98.496,98.441,38.50098049]
[1644692811433,35.57598822,98.499,98.441,38.50098049]
[1644692812032,4.70083774,98.498,98.441,38.50098049]
[1644692812232,35.57598822,98.499,98.441,38.50098049]
[1644692812634,35.57598822,98.499,98.442,5.077]
[1644692813233,0.03082653,98.51,98.442,5.077]
[1644692813440,189.93,98.57,98.442,5.077]
[1644692813441,15.2355,98.54,98.444,66.0]
[1644692813634,189.93,98.57,98.443,2.62390296]
[1644692813635,2.84903834,98.537,98.45,29.8647]
[1644692813934,2.84903834,98.548,98.451,100.3]
[1644692814135,2.84903834,98.556,98.451,107.99890296]
[1644692814335,2.84903834,98.564,98.452,46.6114]
[1644692814537,40.13029295,98.555,98.453,5.075]
[1644692814743,40.13029295,98.555,98.48,15.2271]
[1644692814934,9.70809728,98.554,98.481,41.10062606]
[1644692815133,5.075,98.554,98.481,41.10062606]
[1644692816533,5.075,98.554,98.46,29.8626]
[1644692816740,4.62345147,98.553,98.455,5.075]
[1644692816937,29.8641,98.55,98.455,5.075]
[1644692817133,2.84903834,98.545,98.455,5.075]
[1644692817333,2.84903834,98.542,98.455,5.075]
[1644692817535,2.84903834,98.54,98.455,5.075]
[1644692817734,35.06512129,98.539,98.456,0.25]
[1644692817935,4.62345147,98.538,98.456,0.25]
[1644692818136,12.32235443,98.538,98.456,0.25]
[1644692818537,7.24735443,98.537,98.456,0.25]
[1644692818739,15.2374,98.53,98.456,0.25]
[1644692818937,5.075,98.536,98.456,0.25]
[1644692818938,5.075,98.529,98.456,0.25]
[1644692819139,35.06512129,98.539,98.456,0.25]
[1644692819339,35.06512129,98.539,98.457,5.075]
[1644692819741,35.06512129,98.539,98.458,39.63655282]
[1644692820041,35.06512129,98.539,98.46,100.3]
[1644692820241,22.8691,98.538,98.462,100.3]
[1644692820442,22.8691,98.538,98.47,15.2317]
[1644692820643,5.075,98.537,98.47,15.2317]
[1644692821041,5.075,98.537,98.471,100.3]
[1644692822141,22.8691,98.538,98.473,100.3]
[1644692822340,22.8691,98.538,98.474,39.96505373]
[1644692823446,22.8691,98.538,98.475,100.3]
[1644692825544,22.8691,98.538,98.474,39.96505373]
[1644692825747,5.075,98.537,98.47,115.5317]
[1644692825946,5.075,98.537,98.47,15.2317]
[1644692826146,5.075,98.537,98.461,24.6364]
[1644692826945,22.8691,98.538,98.461,24.6364]
[1644692827545,22.8691,98.538,98.462,100.3]
[1644692828751,22.90058235,98.538,98.463,5.075]
[1644692828949,22.90058235,98.538,98.464,100.3]
[1644692829148,22.8691,98.538,98.464,100.3]
[1644692829357,22.8691,98.538,98.47,15.2317]
[1644692830257,22.8691,98.538,98.47,115.5317]
[1644692830649,5.075,98.537,98.47,115.5317]
[1644692831251,5.075,98.537,98.471,2.62390296]
[1644692831455,0.03148235,98.543,98.49,15.2271]
[1644692831651,0.03148235,98.542,98.491,5.075]
[1644692831852,4.66293643,98.558,98.492,100.3]
[1644692832051,0.03148235,98.557,98.492,100.3]
[1644692832250,45.45825674,98.557,98.493,42.62067645]
[1644692832451,4.63145408,98.556,98.493,42.62067645]
[1644692832851,4.63145408,98.556,98.5,15.2271]
[1644692833252,45.45825674,98.557,98.501,100.3]
[1644692834451,45.45825674,98.557,98.501,105.374]
[1644692837554,45.45825674,98.557,98.501,100.3]
[1644692839560,45.45825674,98.557,98.51,15.2256]
[1644692839963,5.074,98.566,98.511,35.23678315]
[1644692840164,0.03148235,98.572,98.511,35.23678315]
[1644692840364,4.66430561,98.577,98.512,100.3]
[1644692840564,4.63282326,98.577,98.512,100.3]
[1644692840965,34.21425735,98.576,98.512,100.3]
[1644692841167,4.63282326,98.575,98.512,105.373]
[1644692841476,4.63282326,98.575,98.52,15.2242]
[1644692841664,4.63282326,98.576,98.521,5.073]
[1644692841865,2.84903834,98.587,98.522,100.3]
[1644692842066,2.84903834,98.589,98.524,100.3]
[1644692842365,2.84903834,98.586,98.524,100.3]
[1644692842987,4.63282326,98.587,98.524,100.3]
[1644692843586,4.63282326,98.587,98.53,15.2224]
[1644692843788,4.63282326,98.587,98.531,100.3]
[1644692845090,47.74482819,98.588,98.531,100.3]
[1644692845491,47.74482819,98.588,98.524,5.073]
[1644692845693,4.62619153,98.587,98.523,22.9756]
[1644692845998,15.17213283,98.587,98.482,5.073]
[1644692846191,2.84903834,98.581,98.486,5.073]
[1644692846391,2.84903834,98.578,98.483,24.2087]
[1644692846594,2.84903834,98.566,98.47,15.2309]
[1644692846792,2.84903834,98.56,98.47,15.2309]
[1644692846993,2.84903834,98.557,98.47,15.2309]
[1644692847193,0.03148235,98.559,98.471,22.8573]
[1644692847394,0.03148235,98.556,98.472,38.12808149]
[1644692847594,4.62619153,98.556,98.472,38.12808149]
[1644692847795,0.03148235,98.555,98.473,0.25]
[1644692848094,5.075,98.554,98.473,0.25]
[1644692848295,29.28147388,98.553,98.473,0.25]
[1644692848500,4.62619153,98.552,98.473,0.25]
[1644692848798,1.42330807,98.523,98.473,0.25]
[1644692848995,1.42330807,98.521,98.473,0.25]
[1644692849198,46.11952,98.52,98.473,0.25]
[1644692849397,1.42330807,98.515,98.473,0.25]
[1644692849794,1.42330807,98.514,98.473,0.25]
[1644692850195,46.11952,98.52,98.441,24.362]
[1644692850196,1.42330807,98.512,98.441,24.362]
[1644692850401,1.42330807,98.505,98.441,24.362]
[1644692850708,1.42330807,98.504,98.442,100.3]
[1644692850896,42.08132175,98.503,98.442,105.377]
[1644692851099,43.50462982,98.503,98.442,105.377]
[1644692851301,1.42330807,98.502,98.442,100.3]
[1644692851498,42.08132175,98.503,98.443,0.25]
[1644692852597,5.077,98.508,98.443,0.25]
[1644692852598,1.42330807,98.508,98.443,0.25]
[1644692852798,1.42330807,98.511,98.45,15.235]
[1644692852997,1.42330807,98.511,98.451,100.3]
[1644692853198,1.42330807,98.517,98.451,108.00090296]
[1644692853399,1.42330807,98.518,98.451,108.00090296]
[1644692853599,24.58990807,98.519,98.452,2.62390296]
[1644692853799,40.52303512,98.517,98.452,41.94951076]
[1644692854003,41.94634319,98.517,98.452,34.2506078]
[1644692854202,41.94634319,98.517,98.453,100.3]
[1644692854401,1.42330807,98.516,98.453,100.3]
[1644692854599,1.42330807,98.516,98.455,100.3]
[1644692854798,1.42330807,98.516,98.46,15.2326]
[1644692854999,1.42330807,98.514,98.443,0.25]
[1644692855199,1.42330807,98.509,98.444,5.075]
[1644692855401,1.42330807,98.507,98.441,24.362]
[1644692855600,1.42330807,98.507,98.433,5.077]
[1644692855802,38.64757862,98.502,98.434,23.758]
[1644692856101,1.42330807,98.501,98.435,5.077]
[1644692856499,1.42330807,98.5,98.435,5.077]
[1644692856704,1.42330807,98.5,98.434,23.758]
[1644692856904,5.077,98.499,98.434,23.758]
[1644692857101,6.50030807,98.499,98.43,34.84978193]
[1644692857301,1.42330807,98.494,98.43,34.84978193]
[1644692857502,6.50130807,98.493,98.43,34.84978193]
[1644692857705,1.42330807,98.494,98.43,34.84978193]
[1644692857904,5.078,98.493,98.43,34.84978193]
[1644692858102,5.078,98.493,98.429,100.3]
[1644692858303,6.50130807,98.493,98.433,0.25]
[1644692858504,1.42330807,98.49,98.433,0.25]
[1644692858905,1.42330807,98.488,98.433,0.25]
[1644692859106,41.83012266,98.487,98.433,0.25]
[1644692859306,36.75212266,98.487,98.433,0.25]
[1644692859508,36.75212266,98.487,98.413,30.0117]
[1644692859509,5.078,98.486,98.413,24.9347]
[1644692859706,1.42330807,98.482,98.413,24.9347]
[1644692859906,5.078,98.481,98.413,24.9347]
[1644692860707,6.50130807,98.481,98.414,0.25]
[1644692860907,1.42330807,98.481,98.414,0.25]
[1644692861109,6.50130807,98.48,98.414,0.25]
[1644692861309,13.49390296,98.48,98.404,5.078]
[1644692861507,1.42330807,98.476,98.404,5.078]
[1644692861708,5.079,98.475,98.371,24.2068]
[1644692861910,16.05330807,98.47,98.371,24.2068]
[1644692862211,44.46998128,98.459,98.387,143.280466]
[1644692862410,44.46998128,98.459,98.387,148.359466]
[1644692862610,44.46998128,98.459,98.388,0.25]
[1644692862811,44.46998128,98.459,98.389,5.08]
[1644692863210,5.08,98.458,98.389,5.08]
[1644692864413,5.08,98.458,98.39,39.12604912]